bitfinex-derivatives/quotes_BNBF0:USTF0_20250511
["timestamp","ask_amount","ask_price","bid_price","bid_amount"]
[1746940484238,0.24353339,668.0,667.06,0.63477024]
[1746940486638,0.50425344,667.99,667.06,0.63477024]
[1746940486939,0.24353339,667.98,667.06,0.63477024]
[1746940487338,0.24353339,667.97,667.06,0.63477024]
[1746940487539,0.24353339,667.96,667.06,0.63477024]
[1746940487833,0.24353339,667.95,667.06,0.63477024]
[1746940488239,0.24353339,667.94,667.06,0.63477024]
[1746940488640,0.24353339,667.98,667.06,0.63477024]
[1746940488840,0.24353339,667.97,667.06,0.63477024]
[1746940489140,1.94388738,667.94,667.06,0.63477024]
[1746940489742,0.50426321,667.93,667.06,0.63477024]
[1746940489938,0.24353339,667.92,667.06,0.63477024]
[1746940490439,0.26072982,667.93,667.06,0.63477024]
[1746940490840,0.24353473,667.92,667.06,0.63477024]
[1746940495741,0.26072982,667.91,667.06,0.63477024]
[1746940496035,0.24353473,667.9,667.06,0.63477024]
[1746940498644,0.2607181,667.89,667.06,0.63477024]
[1746940499346,0.24353473,667.88,667.06,0.63477024]
[1746940501742,0.24353473,668.01,667.06,0.63477024]
[1746940501945,1.94388738,668.02,667.06,0.63477024]
[1746940502243,0.24353682,668.01,667.06,0.63477024]
[1746940502447,2.1874242,668.01,667.06,0.63477024]
[1746940502748,0.50425883,668.0,667.06,0.63477024]
[1746940503446,0.24353682,667.99,667.06,0.63477024]
[1746940503747,1.94388738,667.97,667.06,0.63477024]
[1746940504242,0.24353682,667.96,667.06,0.63477024]
[1746940504447,0.24353682,667.95,667.06,0.63477024]
[1746940504847,0.24353682,667.94,667.06,0.63477024]
[1746940505347,0.24353682,667.93,667.06,0.63477024]
[1746940505644,0.24353682,667.92,667.06,0.63477024]
[1746940506046,0.24353682,667.91,667.06,0.63477024]
[1746940506247,1.94388738,667.74,667.06,0.63477024]
[1746940506847,0.24353682,667.73,667.06,0.63477024]
[1746940508049,1.94388738,667.66,667.06,0.63477024]
[1746940508447,0.24353682,667.65,667.06,0.63477024]
[1746940512348,0.24353682,667.66,667.06,0.63477024]
[1746940513851,2.1874242,667.66,667.06,0.63477024]
[1746940514149,0.24353682,667.65,667.06,0.63477024]
[1746940517151,1.94388738,667.67,667.06,0.63477024]
[1746940517551,0.24353629,667.66,667.06,0.63477024]
[1746940518753,1.94388738,667.69,667.06,0.63477024]
[1746940518754,0.24353629,667.68,667.06,0.63477024]
[1746940520553,0.24353629,667.74,667.06,0.63477024]
[1746940523454,0.24353629,667.78,667.06,0.63477024]
[1746940525759,0.26074838,667.86,667.06,0.63477024]
[1746940526059,0.24347958,667.85,667.06,0.63477024]
[1746940528259,0.24347958,667.85,667.06,0.364]
[1746940529059,0.24347958,667.85,665.05,0.94722865]
[1746940529659,0.24347958,667.85,666.54,0.26079821]
[1746940531360,0.24347958,667.85,666.68,0.348]
[1746940531655,1.94388738,668.24,666.68,0.348]
[1746940531960,0.24344482,668.23,666.68,0.348]
[1746940532360,0.24344482,668.22,666.68,0.348]
[1746940532661,0.50423423,668.22,666.68,0.348]
[1746940532961,0.24344482,668.21,666.68,0.348]
[1746940533357,0.24344482,668.2,666.68,0.348]
[1746940533762,0.24344482,668.19,666.68,0.348]
[1746940534061,0.24344482,668.18,666.68,0.348]
[1746940534360,0.24344482,668.17,666.68,0.348]
[1746940534760,0.24344482,668.16,666.68,0.348]
[1746940535062,0.24344482,668.29,666.68,0.348]
[1746940535461,1.94388738,668.4,666.68,0.348]
[1746940535462,0.24344482,668.28,666.68,0.348]
[1746940535665,0.50424596,668.28,666.68,0.348]
[1746940535963,0.24344482,668.27,666.68,0.348]
[1746940536158,0.24344482,668.26,666.68,0.348]
[1746940536564,0.24344482,668.25,666.68,0.348]
[1746940536963,0.24344482,668.24,666.68,0.348]
[1746940537159,0.29930262,668.22,666.68,0.348]
[1746940537663,0.24344482,668.21,666.68,0.348]
[1746940537864,0.29931606,668.19,666.68,0.348]
[1746940538564,0.24344482,668.18,666.68,0.348]
[1746940538761,0.2993295,668.16,666.68,0.348]
[1746940539466,0.24344482,668.15,666.68,0.348]
[1746940539765,0.54278328,668.14,666.68,0.348]
[1746940539966,0.29934294,668.13,666.68,0.348]
[1746940540264,0.54278776,668.13,666.68,0.348]
[1746940540667,0.24344482,668.12,666.68,0.348]
[1746940541469,0.29934294,668.13,666.68,0.348]
[1746940541668,0.26080993,668.11,666.68,0.348]
[1746940542563,0.24365942,668.1,666.68,0.348]
[1746940543572,0.24365942,668.09,666.68,0.348]
[1746940544071,0.24365942,668.08,666.68,0.348]
[1746940544668,0.24365942,668.07,666.68,0.348]
[1746940544971,0.24365942,668.06,666.68,0.348]
[1746940545372,0.24365942,668.05,666.68,0.348]
[1746940545667,0.24365942,668.04,666.68,0.348]
[1746940545974,0.24365942,668.03,666.68,0.348]
[1746940546380,0.24365942,668.02,666.68,0.348]
[1746940546781,0.24365942,668.01,666.68,0.348]
[1746940547182,0.24365942,668.0,666.68,0.348]
[1746940547583,0.24365942,668.1,666.68,0.348]
[1746940547982,0.24365942,668.09,666.68,0.348]
[1746940548282,0.24365942,668.08,666.68,0.348]
[1746940548684,0.24365942,668.07,666.68,0.348]
[1746940549083,0.24365942,668.06,666.68,0.348]
[1746940549283,0.24365942,668.05,666.68,0.348]
[1746940549479,0.24365942,668.04,666.68,0.348]
[1746940549983,0.24365942,668.03,666.68,0.348]
[1746940550384,0.24365942,668.02,666.68,0.348]
[1746940550678,0.24365942,668.01,666.68,0.348]
[1746940551083,0.24365942,668.0,666.68,0.348]
[1746940551584,0.24365942,667.99,666.68,0.348]
[1746940551879,0.24365942,667.98,666.68,0.348]
[1746940552183,0.24365942,667.97,666.68,0.348]
[1746940552584,0.24365942,667.96,666.68,0.348]
[1746940552985,0.24365942,667.95,666.68,0.348]
[1746940553385,0.29934294,668.13,666.68,0.348]
[1746940553386,0.24365942,667.94,666.68,0.348]
[1746940553686,0.50446154,667.94,666.68,0.348]
[1746940553887,0.24365942,667.93,666.68,0.348]
[1746940555588,0.24365942,668.12,666.68,0.348]
[1746940555781,0.26080212,667.92,666.68,0.348]
[1746940555983,0.2993519,668.11,666.68,0.348]
[1746940556188,0.24365942,667.91,666.68,0.348]
[1746940556684,0.26078844,667.9,666.69,0.2999895]
[1746940557089,0.24365942,667.89,666.69,0.2999895]
[1746940557483,0.24365942,667.88,666.69,0.2999895]
[1746940557791,0.24365942,667.87,666.69,0.2999895]
[1746940558190,0.24365942,667.86,666.69,0.2999895]
[1746940558491,0.24365942,667.89,666.69,0.2999895]
[1746940558787,0.24365942,667.88,666.69,0.2999895]
[1746940559090,0.24365942,667.89,666.69,0.2999895]
[1746940559391,0.24365942,667.88,666.69,0.2999895]
[1746940559593,1.94388738,667.85,666.69,0.2999895]
[1746940560091,0.24365942,667.84,666.7,0.44]
[1746940560292,0.24365942,667.84,666.72,0.299976]
[1746940562495,0.24365942,667.87,666.72,0.299976]
[1746940564395,0.24365942,667.93,666.72,0.299976]
[1746940564890,0.26073177,667.97,666.72,0.299976]
[1746940565195,0.24365942,667.96,666.72,0.299976]
[1746940567800,0.50438826,667.96,666.72,0.299976]
[1746940567992,0.26072884,667.96,666.72,0.299976]
[1746940568491,0.24365942,667.95,666.72,0.299976]
[1746940568797,0.24365942,667.95,666.73,1.16049633]
[1746940568999,0.24365942,667.95,666.75,0.2999625]
[1746940573798,0.26072689,667.96,666.75,0.2999625]
[1746940574202,0.24365942,667.95,666.75,0.2999625]
[1746940576204,0.24365942,667.95,666.76,1.16086514]
[1746940576404,0.24365942,667.95,666.78,0.299949]
[1746940576806,0.26072298,667.96,666.78,0.299949]
[1746940577003,0.24365942,667.95,666.78,0.299949]
[1746940577806,0.24365942,667.95,666.79,0.381]
[1746940577998,0.24365942,667.95,666.81,0.29993551]
[1746940579807,0.24365942,668.1,666.81,0.29993551]
[1746940581809,0.2993519,668.11,666.81,0.29993551]
[1746940582104,0.24350308,668.1,666.81,0.29993551]
[1746940585008,0.24350308,668.09,666.81,0.29993551]
[1746940585709,0.24350308,668.08,666.81,0.29993551]
[1746940586109,0.26070638,668.07,666.81,0.29993551]
[1746940586404,0.24350308,668.06,666.81,0.29993551]
[1746940591212,0.26070638,668.07,666.81,0.29993551]
[1746940591511,0.24349041,668.06,666.81,0.29993551]
[1746940592214,0.24349041,668.06,666.82,1.15935423]
[1746940592409,0.24349041,668.06,666.84,0.29992202]
[1746940592814,0.24349041,668.06,666.85,1.15935423]
[1746940593014,0.24349041,668.06,666.87,0.29990852]
[1746940593213,0.24349041,668.06,666.88,1.15935423]
[1746940593414,0.24349041,668.06,666.9,0.29989503]
[1746940594716,0.24349041,668.1,666.9,0.29989503]
[1746940595015,0.24349041,668.1,666.91,1.15897491]
[1746940595208,0.24349041,668.1,666.93,0.29988154]
[1746940595514,0.24349041,668.1,666.94,1.15897491]
[1746940595714,0.24349041,668.1,666.96,0.29986805]
[1746940596610,0.24349041,668.1,666.97,1.15853959]
[1746940596815,0.24349041,668.1,666.99,0.29985457]
[1746940604527,0.24349041,668.1,667.0,0.416]
[1746940604727,0.24349041,668.1,667.02,0.29984108]
[1746940616735,0.26067709,668.09,667.02,0.29984108]
[1746940617035,0.24349041,668.08,667.02,0.29984108]
[1746940618331,0.26067709,668.09,667.02,0.29984108]
[1746940618536,0.2993519,668.11,667.02,0.29984108]
[1746940618735,0.24346248,668.08,667.02,0.29984108]
[1746940619436,0.24346248,668.1,667.02,0.29984108]
[1746940619738,0.26067904,668.07,667.02,0.29984108]
[1746940620139,0.24346248,668.06,667.03,0.453]
[1746940620341,0.24346248,668.06,667.04,0.29983209]
[1746940621743,0.26068294,668.05,667.04,0.29983209]
[1746940622242,0.24346248,668.04,667.04,0.29983209]
[1746940627942,0.24346248,668.1,667.04,0.29983209]
[1746940628747,0.26068294,668.09,667.04,0.29983209]
[1746940628947,0.24346248,668.08,667.04,0.29983209]
[1746940630845,0.26070443,668.07,667.04,0.29983209]
[1746940631142,0.24346248,668.06,667.04,0.29983209]
[1746940634548,0.24346248,668.06,667.05,0.403]
[1746940636943,0.24346248,668.1,667.05,0.403]
[1746940637749,0.2607015,668.09,667.05,0.403]
[1746940637948,0.24346248,668.08,667.05,0.403]
[1746940639648,0.24346248,668.1,667.05,0.403]
[1746940640750,0.2607054,668.09,667.05,0.403]
[1746940641143,0.24346248,668.08,667.05,0.403]
[1746940641345,0.24346248,668.07,667.05,0.403]
[1746940641749,0.24346248,668.08,667.05,0.403]
[1746940642647,0.24346248,668.1,667.05,0.403]
[1746940642848,0.26071322,668.07,667.05,0.403]
[1746940643050,0.24346248,668.06,667.05,0.403]
[1746940644053,0.26071322,668.07,667.05,0.403]
[1746940644248,0.24352661,668.06,667.05,0.403]
[1746940645651,0.24352661,668.1,667.05,0.403]
[1746940645848,0.26071322,668.05,667.05,0.403]
[1746940646554,0.24352661,668.04,667.05,0.403]
[1746940651959,0.26071322,668.05,667.05,0.403]
[1746940652260,0.24351445,668.04,667.05,0.403]
[1746940652559,0.24351445,668.03,667.04,0.29983209]
[1746940652860,0.24351445,668.02,667.04,0.29983209]
[1746940653261,0.26071322,668.05,667.04,0.29983209]
[1746940653459,0.24350772,668.04,667.04,0.29983209]
[1746940653761,0.24350772,668.03,667.04,0.29983209]
[1746940654060,0.24350772,668.02,667.04,0.29983209]
[1746940654657,0.24350772,668.01,667.04,0.29983209]
[1746940654856,0.24350772,668.1,667.04,0.29983209]
[1746940655166,1.94388738,668.07,667.04,0.29983209]
[1746940655565,0.24350366,668.06,667.04,0.29983209]
[1746940655759,0.50419344,668.06,667.04,0.29983209]
[1746940655959,0.26068978,668.06,667.05,0.419]
[1746940656365,0.24350301,668.05,667.05,0.419]
[1746940657160,0.24350301,668.05,667.05,0.71882759]
[1746940658264,0.24350301,668.05,667.06,0.2998231]
[1746940660970,0.26066928,668.09,667.06,0.2998231]
[1746940661271,0.24350301,668.08,667.06,0.2998231]
[1746940661569,0.26066928,668.09,667.06,0.2998231]
[1746940661773,0.24345032,668.08,667.06,0.2998231]
[1746940663666,0.2993519,668.11,667.06,0.2998231]
[1746940663866,0.26066732,668.1,667.06,0.2998231]
[1746940664067,0.50411663,668.1,667.06,0.2998231]
[1746940664465,0.24344931,668.09,667.06,0.2998231]
[1746940666366,0.24344931,668.1,667.06,0.2998231]
[1746940673082,0.24344931,668.1,667.07,1.16306927]
[1746940673275,0.24344931,668.1,667.09,0.29980962]
[1746940673582,0.24344931,668.1,667.1,1.16306927]
[1746940673781,0.24344931,668.1,667.12,0.29979613]
[1746940674282,0.24344931,668.1,667.13,1.16306927]
[1746940674684,0.24344931,668.1,667.15,0.29978265]
[1746940674885,0.24344931,668.1,667.16,1.16306927]
[1746940675085,0.24344931,668.1,667.18,0.29976917]
[1746940675385,0.24344931,668.1,667.19,1.16306927]
[1746940675685,0.24344931,668.1,667.21,0.29975569]
[1746940675885,0.24344931,668.1,667.22,1.16306927]
[1746940676088,0.24344931,668.1,667.24,0.29974222]
[1746940676685,0.2993519,668.11,667.24,0.29974222]
[1746940676887,0.2993519,668.11,667.25,1.16009617]
[1746940677087,0.2993519,668.11,667.27,0.29972874]
[1746940677485,0.2993519,668.11,667.28,1.16009617]
[1746940677689,0.2993519,668.11,667.3,0.29971527]
[1746940688087,0.24331742,668.1,667.3,0.29971527]
[1746940689096,0.24331742,668.1,667.31,0.387]
[1746940689292,0.24331742,668.1,667.32,0.29970628]
[1746940691297,0.2993519,668.11,667.32,0.29970628]
[1746940691691,0.24339829,668.1,667.32,0.29970628]
[1746940701496,0.2993519,668.11,667.32,0.29970628]
[1746940701902,0.24338092,668.1,667.32,0.29970628]
[1746940706803,0.24338092,668.1,667.33,0.287]
[1746940707006,0.24338092,668.1,667.34,0.2996973]
[1746940712109,0.2993519,668.11,667.34,0.2996973]
[1746940712614,0.24337324,668.1,667.34,0.2996973]
[1746940715010,0.2993519,668.11,667.34,0.2996973]
[1746940715517,0.2433913,668.1,667.34,0.2996973]
[1746940725322,0.2433913,668.1,667.35,0.398]
[1746940727125,0.2433913,668.1,667.36,0.29968832]
[1746940728326,0.2993519,668.11,667.36,0.29968832]
[1746940728720,0.24339572,668.1,667.36,0.29968832]
[1746940740435,0.2993519,668.11,667.36,0.29968832]
[1746940740747,0.24335299,668.1,667.36,0.29968832]
[1746940741938,0.24335299,668.1,667.37,0.445]
[1746940742134,0.24335299,668.1,667.38,0.29967934]
[1746940745239,0.2993519,668.11,667.38,0.29967934]
[1746940745538,0.24335317,668.1,667.38,0.29967934]
[1746940760952,0.24335317,668.1,667.39,0.359]
[1746940763150,0.24335317,668.1,667.4,0.29967036]
[1746940781864,0.26065268,668.09,667.4,0.29967036]
[1746940782268,0.24335317,668.08,667.4,0.29967036]
[1746940783468,0.24335317,668.08,666.93,0.29988154]
[1746940783669,0.24335317,668.08,667.03,0.29983658]
[1746940784168,0.24335317,668.1,667.03,0.29983658]
[1746940784770,0.2607308,668.09,667.03,0.29983658]
[1746940785571,0.24335317,668.08,667.03,0.29983658]
[1746940785865,0.24335317,668.08,667.04,0.3]
[1746940786762,0.24335317,668.1,667.04,0.3]
[1746940787772,0.26074154,668.09,667.04,0.3]
[1746940788076,0.24335317,668.08,667.04,0.3]
[1746940790073,0.24335317,668.1,667.04,0.3]
[1746940790774,0.26074154,668.09,667.04,0.3]
[1746940791274,0.24335317,668.08,667.04,0.3]
[1746940792871,0.2993519,668.11,667.04,0.3]
[1746940792872,0.24335317,668.1,667.04,0.3]
[1746940793678,0.24335317,668.09,667.04,0.3]
[1746940793877,0.50409471,668.09,667.04,0.3]
[1746940794077,0.24335317,668.08,667.04,0.3]
[1746940794377,0.24335317,668.07,667.04,0.3]
[1746940794678,0.24335317,668.06,667.04,0.3]
[1746940794977,0.24335317,668.08,667.04,0.3]
[1746940795979,0.24335317,668.1,667.04,0.3]
[1746940796779,0.26074154,668.09,667.04,0.3]
[1746940796981,0.24335317,668.08,667.04,0.3]
[1746940797985,0.24335317,668.08,667.03,0.29983658]
[1746940799080,0.26074056,668.07,667.03,0.29983658]
[1746940799578,0.24335317,668.06,667.03,0.29983658]
[1746940800782,0.24335317,668.06,667.04,0.437]
[1746940801783,0.26073959,668.05,667.04,0.437]
[1746940802082,0.24335317,668.04,667.04,0.437]
[1746940805080,0.50409276,668.03,667.04,0.437]
[1746940805681,0.24335317,668.02,667.04,0.437]
[1746940805977,0.26073959,668.03,667.04,0.437]
[1746940806282,0.24349164,668.02,667.04,0.437]
[1746940807883,0.26075717,668.01,667.04,0.437]
[1746940808483,0.24349164,668.0,667.04,0.437]
[1746940810285,0.26075717,668.01,667.04,0.437]
[1746940810685,0.24349669,668.0,667.04,0.437]
[1746940810884,0.50426754,668.0,667.04,0.437]
[1746940811080,0.26077085,668.0,667.04,0.437]
[1746940811387,0.24349669,667.99,667.04,0.437]
[1746940816491,0.24349669,667.98,667.04,0.437]
[1746940816888,0.24349669,667.97,667.04,0.437]
[1746940817192,0.24349669,667.96,667.04,0.437]
[1746940817791,0.24349669,667.95,667.04,0.437]
[1746940817991,0.50427731,667.95,667.04,0.437]
[1746940818188,0.26078062,667.95,667.04,0.437]
[1746940818493,0.24349669,667.94,667.04,0.437]
[1746940819889,0.24349669,668.0,667.04,0.437]
[1746940820293,0.24349669,667.99,667.04,0.437]
[1746940820592,0.24349669,667.98,667.04,0.437]
[1746940820895,0.50428708,667.98,667.04,0.437]
[1746940821093,0.24349669,667.97,667.04,0.437]
[1746940821395,0.24349669,667.96,667.04,0.437]
[1746940821895,0.24349669,667.95,667.03,0.29983658]
[1746940822395,0.24349669,667.94,667.03,0.29983658]
[1746940822695,0.24349669,667.94,666.93,0.29988154]
[1746940822996,0.24349669,667.93,666.93,0.29988154]
[1746940823291,0.24349669,667.92,666.93,0.29988154]
[1746940823595,0.24349669,667.91,666.93,0.29988154]
[1746940823792,0.50432129,667.91,666.93,0.29988154]
[1746940824189,0.24349669,667.9,666.93,0.29988154]
[1746940824391,1.94388738,667.88,666.93,0.29988154]
[1746940824596,0.24349669,667.87,666.93,0.29988154]
[1746940825390,0.24349669,667.86,666.93,0.29988154]
[1746940825793,0.24349669,667.85,666.93,0.29988154]
[1746940825989,0.24349669,667.84,666.93,0.29988154]
[1746940826395,0.24349669,667.83,666.93,0.29988154]
[1746940826590,0.50431151,667.83,666.93,0.29988154]
[1746940826795,0.24349669,667.82,666.93,0.29988154]
[1746940827997,0.24349669,667.81,666.93,0.29988154]
[1746940828393,0.24349669,667.8,666.93,0.29988154]
[1746940828793,0.24349669,667.79,666.93,0.29988154]
[1746940828998,0.24349669,667.78,666.93,0.29988154]
[1746940829299,0.24349669,667.77,666.93,0.29988154]
[1746940829799,0.24349669,667.76,666.93,0.29988154]
[1746940829998,0.24349669,667.75,666.93,0.29988154]
[1746940830199,1.94388738,667.75,666.93,0.29988154]
[1746940830600,0.24315041,667.74,666.93,0.29988154]
[1746940831099,0.24315041,667.73,666.93,0.29988154]
[1746940831399,0.24315041,667.72,666.93,0.29988154]
[1746940831699,0.24315041,667.74,666.93,0.29988154]
[1746940831895,0.26079821,667.71,666.93,0.29988154]
[1746940832400,0.24315041,667.7,666.93,0.29988154]
[1746940835102,0.26080993,667.69,666.93,0.29988154]
[1746940835300,0.50396034,667.69,666.93,0.29988154]
[1746940835803,0.24315041,667.68,666.93,0.29988154]
[1746940838005,0.24315041,667.98,666.93,0.29988154]
[1746940838205,1.94388738,667.95,666.93,0.29988154]
[1746940838704,0.24315041,667.94,666.93,0.29988154]
[1746940839005,0.24315041,667.93,666.93,0.29988154]
[1746940839305,0.24315041,667.92,666.93,0.29988154]
[1746940839605,0.24315041,667.91,666.93,0.29988154]
[1746940839904,0.26079625,667.94,666.93,0.29988154]
[1746940839905,0.24315041,667.9,666.93,0.29988154]
[1746940840204,0.24315041,667.89,666.93,0.29988154]
[1746940840599,0.24315041,667.88,666.93,0.29988154]
[1746940840900,1.94388738,667.93,666.93,0.29988154]
[1746940841107,0.26079821,667.87,666.93,0.29988154]
[1746940841607,0.24313509,667.86,666.93,0.29988154]
[1746940842006,0.24313509,667.85,666.93,0.29988154]
[1746940842506,0.24313509,667.84,666.93,0.29988154]
[1746940843002,0.24313509,667.83,666.93,0.29988154]
[1746940843506,0.24313509,667.82,666.93,0.29988154]
[1746940844006,0.24313509,667.81,666.93,0.29988154]
[1746940844407,0.24313509,667.8,666.93,0.29988154]
[1746940844607,0.24313509,667.86,666.93,0.29988154]
[1746940844808,1.94388738,667.65,666.93,0.29988154]
[1746940845208,0.24313509,667.64,666.93,0.29988154]
[1746940847509,0.24313509,667.86,666.93,0.29988154]
[1746940849811,0.24313509,667.92,666.93,0.29988154]
[1746940850210,0.24313509,667.91,667.03,0.29983658]
[1746940850510,0.24313509,667.9,667.03,0.29983658]
[1746940850811,0.50385807,667.9,667.03,0.29983658]
[1746940851510,0.24313509,667.89,667.03,0.29983658]
[1746940852413,0.24313509,667.88,667.03,0.29983658]
[1746940852813,0.24313509,667.87,667.04,0.348]
[1746940853013,0.24313509,667.86,667.05,0.29982759]
[1746940853209,0.24313509,667.97,667.05,0.29982759]
[1746940853515,0.24313509,667.96,667.05,0.29982759]
[1746940854013,0.24313509,667.95,667.05,0.29982759]
[1746940854213,0.24313509,667.94,667.05,0.29982759]
[1746940854614,0.24313509,667.93,667.05,0.29982759]
[1746940855215,0.24313509,667.92,667.05,0.29982759]
[1746940855416,0.24313509,667.91,667.05,0.29982759]
[1746940855715,0.24313509,667.9,667.05,0.29982759]
[1746940856015,0.24313509,667.95,667.05,0.29982759]
[1746940860319,0.24313509,667.94,667.05,0.29982759]
[1746940860819,0.24313509,667.93,667.05,0.29982759]
[1746940861221,0.24313509,667.92,667.05,0.29982759]
[1746940861816,0.24313509,667.95,667.05,0.29982759]
[1746940862021,0.26071322,667.91,667.05,0.29982759]
[1746940862321,0.24313509,667.9,667.05,0.29982759]
[1746940865020,0.24313509,668.07,667.05,0.29982759]
[1746940865322,0.24313509,668.06,667.05,0.29982759]
[1746940865822,0.24313509,668.05,667.05,0.29982759]
[1746940866023,0.50385026,668.05,667.05,0.29982759]
[1746940866423,0.24313509,668.04,667.06,0.286]
[1746940869023,0.26075717,668.03,667.06,0.286]
[1746940869525,0.24313509,668.02,667.06,0.286]
[1746940869825,0.24313509,668.01,667.06,0.286]
[1746940870224,0.24313509,668.0,667.06,0.286]
[1746940871024,0.24313509,667.99,667.06,0.286]
[1746940871328,0.24313509,667.98,667.06,0.286]
[1746940871726,0.24313509,667.97,667.06,0.286]
[1746940872025,0.24313509,667.96,667.06,0.286]
[1746940872326,0.24313509,667.95,667.06,0.286]
[1746940872627,0.24313509,667.94,667.06,0.286]
[1746940872928,0.24313509,667.93,667.06,0.286]
[1746940873227,0.24313509,667.92,667.06,0.286]
[1746940873627,0.24313509,667.91,667.06,0.286]
[1746940874126,0.24313509,667.9,667.06,0.286]
[1746940874327,0.24313509,667.89,667.06,0.286]
[1746940874626,0.24313509,667.88,667.06,0.286]
[1746940874828,1.94388738,668.05,667.06,0.286]
[1746940875026,0.2607728,667.88,667.06,0.286]
[1746940875221,0.24359385,668.04,667.06,0.286]
[1746940875826,0.24359385,668.1,667.06,0.286]
[1746940876127,0.26076694,668.03,667.06,0.286]
[1746940876727,0.24359385,668.02,667.06,0.286]
[1746940883026,0.26080114,668.01,667.06,0.286]
[1746940883330,0.24359385,668.0,667.06,0.286]
[1746940885928,0.24359385,668.1,667.06,0.286]
[1746940886130,0.24359385,668.09,667.06,0.286]
[1746940886430,0.24359385,668.08,667.06,0.286]
[1746940886831,0.50439303,668.08,667.06,0.286]
[1746940887025,0.24359385,668.07,667.06,0.286]
[1746940887432,0.26079918,668.08,667.06,0.286]
[1746940887729,0.24368679,668.07,667.06,0.286]
[1746940888032,0.24368679,668.06,667.06,0.286]
[1746940888432,0.24368679,668.07,667.06,0.286]
[1746940889128,0.24368679,668.06,667.06,0.286]
[1746940889533,0.24368679,668.05,667.06,0.286]
[1746940889834,0.24368679,668.04,667.06,0.286]
[1746940890533,0.24368679,668.03,667.06,0.286]
[1746940890829,0.24368679,668.02,667.06,0.286]
[1746940891234,0.24368679,668.01,667.06,0.286]
[1746940891430,0.24368679,668.01,666.93,0.29988154]
[1746940891636,0.24368679,668.0,666.93,0.29988154]
[1746940891830,0.24368679,667.99,666.93,0.29988154]
[1746940892229,0.24368679,667.98,666.93,0.29988154]
[1746940892434,0.24368679,667.97,666.93,0.29988154]
[1746940892836,0.24368679,667.96,666.93,0.29988154]
[1746940893135,0.26078844,668.0,666.93,0.29988154]
[1746940893136,0.24368679,667.95,666.93,0.29988154]
[1746940893437,0.24368679,667.94,666.93,0.29988154]
[1746940893840,0.24368679,667.93,666.93,0.29988154]
[1746940894139,0.26078844,668.0,666.93,0.29988154]
[1746940894438,1.94388738,667.97,666.93,0.29988154]
[1746940894635,0.24364879,667.96,666.93,0.29988154]
[1746940894838,0.24364879,667.96,667.03,0.45]
[1746940895039,0.24364879,667.95,667.03,0.45]
[1746940895237,0.24364879,667.94,667.03,0.45]
[1746940895541,0.24364879,667.93,667.03,0.45]
[1746940895941,0.50442843,667.93,667.03,0.45]
[1746940896839,0.24364879,667.92,667.03,0.45]
[1746940897846,0.24364879,667.99,667.03,0.45]
[1746940899241,0.26076596,667.98,667.03,0.45]
[1746940899644,0.50441475,667.98,667.03,0.45]
[1746940900039,0.24364879,667.97,667.03,0.45]
[1746940900945,0.24364879,668.1,667.03,0.45]
[1746940901845,0.26077769,668.09,667.03,0.45]
[1746940902341,0.24364879,668.08,667.03,0.45]
[1746940906351,0.24364879,668.07,667.03,0.45]
[1746940906951,0.50442648,668.06,667.03,0.45]
[1746940907354,1.94388738,668.01,667.03,0.45]
[1746940907852,0.24364879,668.0,667.03,0.45]
[1746940908147,0.24364879,667.99,667.03,0.45]
[1746940908452,0.24364879,667.98,667.03,0.45]
[1746940908851,0.24364879,667.97,667.03,0.45]
[1746940909251,0.24364879,667.96,667.03,0.45]
[1746940909552,0.24364879,667.95,667.03,0.45]
[1746940910052,0.24364879,667.94,667.03,0.45]
[1746940910248,0.24364879,667.93,667.03,0.45]
[1746940910649,0.24364879,667.92,667.03,0.45]
[1746940910954,0.24364879,667.91,667.03,0.45]
[1746940911254,0.24364879,667.9,667.03,0.45]
[1746940911649,0.24364879,667.89,667.03,0.45]
[1746940912053,0.24364879,667.88,667.03,0.45]
[1746940912455,1.94388738,667.85,667.03,0.45]
[1746940912851,0.50445188,667.84,667.03,0.45]
[1746940913152,0.24364879,667.83,667.03,0.45]
[1746940913454,0.24364879,667.82,667.03,0.45]
[1746940913855,0.24364879,667.81,667.03,0.45]
[1746940914254,0.24364879,667.8,667.03,0.45]
[1746940914454,1.94388738,667.65,667.03,0.45]
[1746940914954,0.24364879,667.64,667.03,0.45]
[1746940916755,0.24364879,667.64,666.93,0.29988154]
[1746940916955,0.24364879,667.73,666.93,0.29988154]
[1746940917255,0.24364879,667.72,666.93,0.29988154]